Workbook

Sheet Sheet1
A2: Last Update: 26 May 2022
A3: Time settings | D3: Fee settings
A5: Months/year | B5: 12 | D5: Recovery of fixed costs | J5: 100%
A6: Average working days/month | B6: 22 | D6: Management fee | J6: 5%
A7: Average working hours/day | B7: 8 | D7: Green fee | J7: 0%
A9: Participating organization | D9: (Agency 1) | E9: (Agency 2) | F9: (Agency 3) | G9: (Agency 5) | H9: (Agency 5) | I9: (Agency 6) | J9: Average to recover
A11: A) Fixed costs to be recovered by trip duration (USD/H)*
A13: A1. Vehicle rent or depreciation
A14: Category 1 vehicles (average annual cost): Light vehicles | D14: 4,860.00 | E14: 5,100.00 | F14: 4,600.00 | J14: =SUMPRODUCT(D14:H14, D15:H15) / SUM(D15:H15) / (B5 * B6 * B7) * J5 -> 2.31
A15: Category 1 vehicles (number of vehicles) | D15: 19 | E15: 16 | F15: 10
A17: Category 2 vehicles (average annual cost): Placeholder
A18: Category 2 vehicles (number of vehicles) | D18: 41
A20: Category 3 vehicles (average annual cost): Placeholder
A21: Category 3 vehicles (number of vehicles)
A23: A2. Insurance
A24: Annual insurance cost per vehicle | J24: =SUMPRODUCT(D24:H24, D25:H25) / SUM(D25:H25) / (B5 * B6 * B7) * J5 -> 0
A25: Number of light vehicles | D25: 50 | E25: 30 | F25: 35
A27: A3. Tracking and e-booking
A28: Annual tracking and e-booking cost per vehicle | J28: =SUMPRODUCT(D28:H28, D29:H29) / SUM(D29:H29) / (B5 * B6 * B7) * J5 -> 0
A29: Number of light vehicles | D29: 50 | E29: 30 | F29: 35
A31: A4. Driver
A32: Average annual cost drivers | D32: 11,880.00 | E32: 14,400.00 | J32: =SUMPRODUCT(D32:H32, D33:H33) / SUM(D33:H33) / (B5 * B6 * B7) * J5 -> 3.75
A33: Number of drivers | D33: 19 | E33: 25 | F33: 30
A35: Total
A36: Total fixed costs (USD/H) | J36: =J14 + J24 + J28 + J32 -> 6.06
A38: B) Variable costs to be recovered by trip mileage (USD/Km)*
A40: B1. Maintenance and repair
A41: Average annual maintenance and repair cost per km | J41: =SUMPRODUCT(D41:H41, D42:H42, D43:H43) / SUMPRODUCT(D42:H42, D43:H43) -> 0
A42: Average annual mileage per vehicle | D42: 15,000.00 | E42: 10,000.00 | F42: 14,000.00
A43: Number of vehicles | D43: 19 | E43: 16 | F43: 10
A45: B2. Fuel
A46: Average annual fuel cost per km | D46: 0.80 | F46: 0.17 | J46: =SUMPRODUCT(D46:H46, D47:H47, D48:H48) / SUMPRODUCT(D47:H47, D48:H48) -> 0.29
A47: Average annual mileage per vehicle | D47: 6,000.00 | E47: 10,000.00 | F47: 9,000.00
A48: Number of vehicles | D48: 19 | E48: 16 | F48: 10
A50: Total
A51: Total variable costs (USD/KM) | J51: =J41 + J46 -> 0.29
A53: C) Fees to be recovered
A55: C1. Management fee
A56: Management fee on fixed costs (USD/H) | J56: =J36 * J6 -> 0.30
A57: Management fee on variable costs (USD/Km) | J57: =J51 * J6 -> 0.01
A59: C2. Green fee
A60: Green fee on fixed costs (USD/H) | J60: =J36 * J7 -> 0
A61: Green fee on variable costs (USD/Km) | J61: =J57 * J7 -> 0
A63: C3. Tehnology supplier fee
A64: Transactional fixed fee per trip
A65: *all numbers reflect year end values as of 2019
A67: E) Price examples | B67: Duration (h) | D67: Mileage (km) | E67: Fixed costs | F67: Variable costs | G67: Mgmt fee | H67: Green fee | I67: Technology supplier fee | J67: Total price
A68: Payment recipient | E68: Vehicle owning organization | G68: Service Support Coordinator | I68: Technology Supplier
A69: Example 1: Short trip (30 min, 6Km) | B69: 1.00 | D69: 66.00 | E69: =$J$36 * B69 -> 6.06 | F69: =$J$51 * D69 -> 19.31 | G69: =$J$56 * B69 + $J$57 * D69 -> 1.27 | H69: =$J$60 * B69 + $J$61 * D69 -> 0 | I69: =J64 -> 0 | J69: =SUM(E69:I69) -> 26.64
A70: Example 2: Long trip (5h 20min, 159Km) | B70: 5.30 | D70: 200.00 | E70: =$J$36 * B70 -> 32.13 | F70: =$J$51 * D70 -> 58.52 | G70: =$J$56 * B70 + $J$57 * D70 -> 4.53 | H70: =$J$60 * B70 + $J$61 * D70 -> 0 | I70: =J64 -> 0 | J70: =SUM(E70:I70) -> 95.18
A72: F) Ride-sharing
A73: Trips which are shared between Participating Organizations shall be priced based on the methodology in this annex. The invoice amount shall then be divided by the number
A74: of Participating Organizations which share the trip
